Cogmind - Beta 16.1 @@@ ROGUE MODE // 2026.02.11 @ 19:06:27 Player: CrossedViper Result: Destroyed by YI-UF0 with YI-UF0's Doublenader Performance ------------- Evolutions (0) 0 Regions Visited (2) 400 Robots Destroyed (39) 195 Value Destroyed (751) 751 Prototype IDs (1) 20 Alien Tech Used (0) 0 Bonus (-45) -45 TOTAL SCORE: 1321 Bonus ------- Friendly Fire -45 Cogmind --------- Core Integrity 0/250 Matter 283/300 Energy 70/100 System Corruption 0% Temperature Cool (0) Movement Core (300) Ox5 Location -10/Mines Parts ------- > --- POWER (1) -------- (None) > --- PROPULSION (2) --- Armored Wheel > --- UTILITY (2) ------ Heat Sink Medium Storage Unit > --- WEAPON (2) ------- Advanced Beam Cannon Assault Rifle > --- INVENTORY (10) --- Light Ion Engine High-capacity Storage Unit Machine Analyzer Seismic Detector Advanced Beam Cannon Advanced Beam Cannon Light Cannon Grenade Launcher Grenade Launcher Grenade Launcher Peak State ------------ > --- POWER ------------ Light Nuclear Core > --- PROPULSION ------- Light Treads Light Treads > --- UTILITY ---------- Medium Storage Unit > --- WEAPON ----------- Advanced Beam Cannon Assault Rifle > --- INVENTORY -------- Ion Engine Light Treads Armored Wheel Machine Analyzer Advanced Beam Cannon Advanced Beam Cannon Assault Rifle Grenade Launcher Grenade Launcher Grenade Launcher [Rating: 11] Favorites ----------- Power Ion Engine Engine Ion Engine Power Core Light Nuclear Core Propulsion Light Treads Treads Light Treads Wheel Armored Wheel Utility Medium Storage Unit Device Heat Sink Storage Medium Storage Unit Weapon Assault Rifle Energy Cannon Advanced Beam Cannon Ballistic Gun Assault Rifle Ballistic Cannon Light Cannon Launcher Grenade Launcher Build | -11 -10 -10 ------- Run | Yrd Mat Min Slots Evolved . | . . . Power . | . . . Propulsion . | . . . Utility . | . . . Weapon . | . . . Parts Attached 18 | 7 7 4 Power 3 | 1 2 . Engine 2 | 1 1 . Core 1 | . 1 . Reactor . | . . . Propulsion 4 | 2 1 1 Treads 3 | 2 1 . Leg . | . . . Wheel 1 | . . 1 Hover . | . . . Flight . | . . . Utility 4 | 2 2 . Device 2 | 1 1 . Storage 2 | 1 1 . Processor . | . . . Hackware . | . . . Protection . | . . . Artifact . | . . . Weapon 7 | 2 2 3 Energy Gun . | . . . Energy Cannon 2 | . 1 1 Ballistic Gun 2 | 2 . . Ballistic Cannon 1 | . 1 . Launcher 2 | . . 2 Special Weapon . | . . . Impact Weapon . | . . . Slashing Weapon . | . . . Piercing Weapon . | . . . Special Melee Weapon . | . . . Unidentified Prototypes 1 | . 1 . Parts Lost 6 | . 3 3 Power 2 | . 1 1 Propulsion 3 | . 1 2 Utility 1 | . 1 . Weapon . | . . . Highest Loss Streak 2 | . 2 2 To Critical Strikes . | . . . Average Backups 7 | 2 8 8 Power . | . . . Propulsion 1 | . 1 . Utility 1 | . . 2 Weapon 4 | . 4 6 Tool/Special . | . . . Unused Backups 10 | . 4 6 Power 1 | . . 1 Propulsion 1 | . 1 . Utility 3 | . . 3 Weapon 5 | . 3 2 Tool/Special . | . . . Average Slot Usage (%) 98 | . 97 99 Engine 13 | . 12 13 Treads 22 | . 27 16 Wheel 5 | . . 11 Device 12 | . 11 14 Storage 14 | . 14 14 Energy Cannon 9 | . 5 14 Ballistic Gun 12 | . 21 . Ballistic Cannon 1 | . . 1 Launcher 5 | . . 12 Peak Build Rating 11 | 7 11 11 Average Rating 8 | 5 8 10 On Entrance 5 | . 7 10 Avg Prop Armor Cover (%) 11 | . . 11 Naked Turns . | . . . Heaviest Build 23 | 15 23 23 Greatest Support 40 | 40 40 40 Greatest Overweight (x) 1 | . . 1 Average Overweight (x) . | . . . Largest Inventory Capacity 10 | 8 10 10 Average Capacity 9 | 7 9 10 Most Carried 10 | 3 10 10 Average Carried 7 | 2 8 8 Final Capacity 10 | 8 10 10 Final Carried 10 | 3 9 10 Class Distribution -------------------- 100% | Mutant Dominant Class ---------------- Mutant | -10/Materials Mutant | -10/Mines Resources | -11 -10 -10 ----------- Run | Yrd Mat Min Matter Collected 899 | 408 392 99 Remotely . | . . . Salvage Created 1129 | 293 732 104 Parts 75 | 24 37 14 Haulers Intercepted 1 | . 1 . Recyclers Shooed . | . . . Parts Field Recycled . | . . . Retrieved Matter . | . . . Parts Self-Destructed . | . . . Prevented . | . . . Parts Restored . | . . . Kills | -11 -10 -10 ------- Run | Yrd Mat Min Combat Hostiles Destroyed 20 | . 15 5 Guns 11 | . 11 . Cannons 4 | . 3 1 AOE 4 | . . 4 Classes Destroyed 9 | 3 6 . Worker 3 | 3 . . Tunneler 10 | 7 . 3 Hauler 1 | . 1 . Recycler 1 | 1 . . Mechanic 1 | . 1 . Operator 1 | . 1 . Watcher 2 | . 2 . Swarmer 5 | . 2 3 Grunt 15 | . 13 2 Best Kill Streak 5 | 2 5 3 Combat Bots Only 5 | . 5 3 Max Kills in Single Turn 2 | 1 1 2 Gunslinging . | . . . Exploded 2 | . . 2 Melee . | . . . Uniques/NPCs Destroyed . | . . . Combat | -11 -10 -10 -------- Run | Yrd Mat Min Hostile Shots Fired 104 | . 74 30 Missed 21 | . 15 6 Hits 83 | . 59 24 Projectile 83 | . 59 24 AOE 16 | . . 16 Critical Strikes 3 | . 2 1 Damage Taken 1329 | . 676 653 Core 254 | . 94 160 Absorbed by Shields . | . . . Core Remaining (%) 100 | 100 . . Volleys Fired 114 | 26 71 17 Largest 2 | 2 2 2 Hottest 98 | 40 88 98 Shots Fired 208 | 52 133 23 Gun 162 | 52 105 5 Cannon 42 | . 28 14 Launcher 4 | . . 4 Special . | . . . Kinetic 165 | 52 106 7 Thermal 39 | . 27 12 Explosive 4 | . . 4 Electromagnetic . | . . . Robot Hit Streak 15 | 6 15 10 Robot Miss Streak 5 | 3 5 2 Penetration Max . | . . . Secondary Targets 3 | . 3 . Max Gunslinging Chain 1 | . 1 . Shots Hit Robots 128 | 22 92 14 Core Hits 55 | 11 30 14 Critical Kills 2 | . 2 . Critical Parts Destroyed 2 | . 2 . Critical Strikes 4 | . 4 . Meltdown 1 | . 1 . Destroy 3 | . 3 . Melee Attacks . | . . . Impact . | . . . Slashing . | . . . Piercing . | . . . Sneak Attacks . | . . . Combat Hostiles . | . . . Follow-up Attacks . | . . . Damage Inflicted 2292 | 308 1395 589 Guns 1349 | 308 982 59 Cannons 590 | . 407 183 Explosions 338 | . . 338 Melee . | . . . Ramming 15 | . 6 9 Kinetic 1403 | 308 997 98 Thermal 536 | . 392 144 Explosive 338 | . . 338 Electromagnetic . | . . . Impact . | . . . Slashing . | . . . Piercing . | . . . Highest Corruption . | . . . Average Corruption . | . . . Corruption Purged . | . . . Corruption Blocked . | . . . Overload Shots . | . . . Overflow Damage 1 | . . 1 Projectiles 1 | . . 1 Explosions . | . . . Melee . | . . . Knockbacks 1 | . . 1 Impact . | . . . Kinetic 1 | . . 1 Secondary . | . . . Self-Inflicted Damage 30 | . . 30 Shots 1 | . . 1 Rammed 4 | . 2 2 Targets Rammed 4 | . 2 2 Kicked . | . . . Crushed . | . . . Highest Temperature 420 | . 420 24 Average Temperature 155 | . 175 9 Received Heat Transfer 399 | . 348 51 Effects 6 | . 6 . Shutdowns 1 | . 1 . Interference 5 | . 5 . Siege Activations . | . . . Martial Activations . | . . . Shielding Activations . | . . . Robots Disrupted . | . . . Combat Hostiles . | . . . Robots Corrupted . | . . . Combat Hostiles . | . . . Parts Fried . | . . . Impact Corruptions . | . . . Robots Melted 1 | . 1 . Combat Hostiles 1 | . 1 . Parts Melted 1 | . 1 . Heat Transferred 925 | . 666 259 Parts Sabotaged . | . . . Parts Stolen . | . . . Parts Stripped . | . . . Power Chain Reactions . | . . . Alert | -11 -10 -10 ------- Run | Yrd Mat Min Maximum Alert Level 1 | . 1 . Low Security (%) 95 | 100 90 100 Level 1 4 | . 9 . Level 2 . | . . . Level 3 . | . . . Level 4 . | . . . Level 5 . | . . . High Security . | . . . Max Security . | . . . Peak Influence 229 | 10 229 189 Initial 66 | . . 66 Average 67 | 1 86 86 Influence Increases 719 | 55 481 183 Destroy 0b10 Robot/C 400 | . 300 100 Destroy 0b10 Robot/NC 95 | 55 25 15 Destroy Leader 96 | . 76 20 Successful Hack 11 | . 5 6 Select Force Hacks 30 | . 30 . Disable Machine 15 | . . 15 Destroy Structure 27 | . . 27 Lose Combat Pursuer 45 | . 45 . Influence Decreases 719 | 55 309 355 Entered New Map 106 | . . 106 Time Decay 573 | 55 279 239 Lost Part 40 | . 30 10 Squads Dispatched 5 | . 5 . Investigation 3 | . 3 . Extermination . | . . . Reinforcement 2 | . 2 . Assault . | . . . Garrison . | . . . Intercept . | . . . Searches Triggered . | . . . Construction Impeded . | . . . Haulers Reinforced . | . . . Active Scanning Responses . | . . . Cargo Convoy Interrupts . | . . . Stealth | -11 -10 -10 --------- Run | Yrd Mat Min Distress Signals 2 | . 2 . Communications Jammed . | . . . Distress Signals . | . . . Times Spotted 32 | . 26 6 Peak Tracking Total 3 | . 3 3 Tactical Retreats 3 | . 3 . Traps | -11 -10 -10 ------- Run | Yrd Mat Min Traps Triggered 1 | . 1 . Indirectly . | . . . Trap Hack Attempts . | . . . Triggered . | . . . Disarmed . | . . . Reprogrammed . | . . . Reused . | . . . Traps Extracted . | . . . Installed . | . . . Triggered . | . . . Machines | -11 -10 -10 ---------- Run | Yrd Mat Min Machines Disabled 1 | . . 1 Max in Single Turn 1 | . . 1 Machines Repaired . | . . . Machines Dismantled . | . . . Machines Sabotaged . | . . . Overloaded Fab Kills . | . . . Hacking | -11 -10 -10 --------- Run | Yrd Mat Min Machines Accessed 6 | . 5 1 Terminals 5 | . 4 1 Fabricators . | . . . Repair Stations . | . . . Recycling Units 1 | . 1 . Scanalyzers . | . . . Garrison Access . | . . . Total Hacks 16 | . 11 5 Successful 6 | . 4 2 Failed 10 | . 7 3 Catastrophic 2 | . 2 . Database Lockouts . | . . . Manual 13 | . 10 3 Terminals 15 | . 10 5 Fabricators . | . . . Repair Stations . | . . . Recycling Units 1 | . 1 . Scanalyzers . | . . . Garrison Access . | . . . Terminal Hacks 4 | . 2 2 Robot Analysis 3 | . 2 1 Zone Layout 1 | . . 1 Fabricator Hacks . | . . . Repair Station Hacks . | . . . Recycling Unit Hacks . | . . . Scanalyzer . | . . . Garrison Access Hacks . | . . . Unauthorized Hacks 2 | . 2 . Terminals 1 | . 1 . Botnet 1 | . 1 . Fabricators . | . . . Repair Stations . | . . . Recycling Units 1 | . 1 . Tunnel 1 | . 1 . Scanalyzers . | . . . Garrison Access . | . . . Data Cores Recovered . | . . . Used . | . . . Hacking Detections 5 | . 4 1 Full Trace Events 4 | . 3 1 Feedback Events . | . . . Feedback Blocked . | . . . Robot Schematics Acquired . | . . . Robots Built . | . . . Authchips . | . . . Time . | . . . Total Robot Build Rating . | . . . Part Schematics Acquired . | . . . Parts Built . | . . . Authchips . | . . . Time . | . . . Total Part Build Rating . | . . . Part Studies Acquired . | . . . Parts Repaired . | . . . Time . | . . . Parts Recycled . | . . . Recycled Matter . | . . . Retrieved Matter . | . . . Retrieved Components . | . . . Parts Scanalyzed . | . . . Part Schematics Acquired . | . . . Parts Damaged . | . . . Bothacking | -11 -10 -10 ------------ Run | Yrd Mat Min Used RIF Installer . | . . . Robots Hacked . | . . . Non-combat . | . . . Combat . | . . . Robot Hacks Applied . | . . . Relay Couplers Released . | . . . Fabnet Peak Effective % . | . . . Robots Rewired . | . . . Allies Hacked . | . . . Hacks Repelled . | . . . Allies | -11 -10 -10 -------- Run | Yrd Mat Min Total Allies . | . . . Largest Group . | . . . Highest-Rated Group . | . . . Highest-Rated Ally . | . . . Total Orders . | . . . Ally Attacks . | . . . Total Damage . | . . . Kills . | . . . Allies Corrupted . | . . . Allies Melted . | . . . Intel | -11 -10 -10 ------- Run | Yrd Mat Min Active Infowar (turns) 549 | 17 532 . Seismic 549 | 17 532 . Robot Analysis Total 3 | . 2 1 Derelict Logs Recovered 2 | . . 2 Drone Launches . | . . . Drone Recoveries . | . . . Exploration | -11 -10 -10 ------------- Run | Yrd Mat Min Turns Passed 1783 | 405 790 588 Spaces Moved 1029 | 207 337 485 Core 16 | 16 . . Treads 567 | 191 337 39 Legs . | . . . Wheels 446 | . . 446 Hover . | . . . Flight . | . . . Fastest Speed 50 | 50 160 105 Average Speed 134 | 151 160 109 Slowest Speed 240 | 160 160 240 Overloaded Moves . | . . . Propulsion Burnouts . | . . . Robots Hopped . | . . . Potential Cave-ins . | . . . Cave-ins Triggered . | . . . Exploration Rate (%) 49 | 5 54 88 Regions Visited 2 Branch Regions 1 Pre-discovered Areas 2 | . 1 1 Known Exits Taken . | . . . Unknown Exits Taken 2 | 1 1 . Scrap Searched 1 | . . 1 Spaces Dug . | . . . Terrain Destroyed 35 | . . 35 Melee . | . . . Projectile 1 | . . 1 AOE 34 | . . 34 Terrain Rammed . | . . . Walls Destroyed . | . . . Machines Disabled . | . . . Actions | -11 -10 -10 --------- Run | Yrd Mat Min Total 1214 | 245 455 514 Wait 20 | . 19 1 Move 1027 | 206 336 485 Hop . | . . . Pick Up 21 | 6 13 2 Fast Attach 6 | 4 2 . Attach 7 | 3 3 1 Detach . | . . . Swap 8 | . 2 6 Drop 7 | . 7 . Fire 114 | 26 71 17 Melee . | . . . Ram 1 | . . 1 Kick . | . . . Crush 3 | . 2 1 Escape Stasis . | . . . Rewire . | . . . Trap . | . . . Miscellaneous . | . . . Route ------- -11/Scrapyard -10/Materials (discovered 2 exits: [*Mat] / *Min) -10/Mines (discovered 2 exits: [*Mat x2]) History --------- Turn | Location | Event 3 | -11/Scrapyard | Discovered new exit (range 15) 406 | -11/Scrapyard | Entered Materials 410 | -10/Materials | Build established: Mutant 844 | -10/Materials | Discovered new exit (range 11) 969 | -10/Materials | Discovered new exit (range 16) 1196 | -10/Materials | Entered Mines 1263 | -10/Mines | Learned location of Zion (-7) 1365 | -10/Mines | Learned 4 Materials zone layouts 1473 | -10/Mines | Discovered new exit (range 5) 1763 | -10/Mines | Discovered new exit (range 13) 1765 | -10/Mines | YI-UF0 nonchalantly dropped a Grenade Launcher on the ground 1771 | -10/Mines | Core integrity fell below 50% 1781 | -10/Mines | Core integrity fell below 20% 1784 | -10/Mines | Destroyed by YI-UF0 with YI-UF0's Doublenader Last Messages --------------- 01549_ Acquired Seismic Detector. 01589_ T-07 Excavator destroyed. 01593_ Acquired Lgt. Ion Engine. 01637_ Destroyed Seismic Detector. 01763_ EXIT=FOUND 01764_ YI-UF0 mumbles something. 01764_ Searching scrap... 01764_ Found EM Pulse Gun. 01764_ Found 45 Matter. 01765_ YI-UF0 nonchalantly drops a Grenade Launcher on the ground. 01766_ Acquired 10 matter. 01768_ Acquired 3 matter. 01769_ YI-UF0: "BOOM TO YOU TOO!" 01770_ Acquired 10 matter. 01770_ Ion Engine destroyed. 01772_ The unstable cave ceiling collapses. 01780_ U-05 Engineer builds a Wall. 01782_ The unstable cave ceiling collapses. 01784_ Lgt. Treads destroyed. Map ----- +----------------------------------------------------+ | ??????????????## ##???# """ ##???### ##??? | | ??????????????# #??## """ ##### ##???? | | ?????????????## ##?# """ #????? | | ?????????????# ### #????? | | ????????????# ## #????? | | ???????????# ##### ##????? | | ???????????# ### #???# #?????? | | ???????????## ???## ##??# ##????? | | ????????????# ??????## #??# #????? | | ???????????# ????????# #??# #????? | | ?????????????????????## ##??## #????? | | ??????????????????????## ##????## ##????? | | ???????????????????????## ##??????#####?????? | | ???????????????????????## #?????????????????? | | ?????????????????????### ##?????????????????? | | ???????####?????????## ####??????#???????????? | | ??????## ##???????## ##????#### ????????????? | | ?????## ##?????## ##?#### ?????????????? | | ?????# #????## ##?# ""?????????????? | | ?????# #???## #? ""?????????????? | | ?????# ##?### # """????????????? | | ?????## #### ### "??????????????? | | ??????### ### ????????????????? | | ?######## ### #?# #?????????????????? | | ?# #?# ## # #?????????? | | ?# #?# # @ g #?????????? | | ?# ########?## # ## < #?????????? | | ## #?????????##### # #????????????????? | | #?????????????# ###????????????????? | | ###?????????????# # ###??????????????????? | | ##################### ?##????????????????????? | | #??###???????????????????????? | | ### ############# #????????????????????????????? | | ##?# #?###???????# #????????????????????????????? | | #?? ? #???????# #?###????????????????????????? | | #?# #??????## ###T##???????????????????????? | | #?# #??????# #???????????????????????? | | ??# """#??????# """ #???????????????????????? | | ??# """#??????# """ #???????????????????????? | | ??# """#?????## "" #???????????????????????? | | ??# #?????# % #???????????????????????? | | ??########?????#% [ #???????????????????????? | | ???????????????# = #???????????????????????? | | ???????????????# = #???????????????????????? | | ???????????????## #* ###???????????????????????? | | #???????????????#######?????????????????????????? | | ????????????????????????????????????????????????? | | ????????????????????????????????????????????????? | | ????????????????????????????????????????????????? | | ????????????????????????????????????????????????? | +----------------------------------------------------+ Best States ------------- Heat Dissipation 35 Energy Generation 14 Energy Capacity 250 Matter Stores 300 Matter Capacity 300 Sight Range 16 Terrain Scan Density 10 Evasion (%) 50 Recoil Reduction 2 Item Schematics ----------------- None Robot Schematics ------------------ None Fabricated ------------ Nothing Repaired ---------- Nothing Studied --------- None Alien Tech Used ----------------- None Achievements -------------- Ghost 'Em Challenges ------------ None Game ------ Seed OpticalSigixBiocell Manual? 0 Play Time 00:10:05 Cumulative 1022.7 hours Start 2026.02.11 @ 18:56:17 End 2026.02.11 @ 19:06:27 Sessions 1 Manual Loads 0 Difficulty Rogue Special Mode None Game No. 609 Rogue 602 Adventurer 0 Explorer 7 Win Type - Total 69 Types 24/6/27/2/0/1/6/1/2/0 Lore% 92 Gallery% 88 Achievement% 55 Wizard Run 0 Options --------- Layout 1 ASCII 0 Keyboard 0 Movement Mouse Keybinds 0 Fullscreen 1 Font 24/Smallcaps Map View 50x35 Zoom Use 0% Tactical HUD 1 Map Filters NONE Filters NONE Steam 1 RUN: 56922e53-6470-4cca-8906-3c56e88f5244